Cogmind - Beta 10.2 @@@ ROGUE MODE // 2021.03.23 @ 15:34:26 Player: ChromeKnight Result: Destroyed by as-49788 with Assembled Heavy Rifle Performance ------------- Evolutions (0) 0 Regions Visited (2) 400 Robots Destroyed (7) 35 Value Destroyed (133) 133 Prototype IDs (0) 0 Alien Tech Used (0) 0 Bonus (0) 0 TOTAL SCORE: 568 Bonus ------- None Cogmind --------- Core Integrity 0/250 Matter 150/300 Energy 100/100 System Corruption 0% Temperature Cool (0) Movement Core (300) Ox5 Location -10/Mines Parts ------- > --- POWER (1) -------- (None) > --- PROPULSION (2) --- (None) > --- UTILITY (2) ------ Large Storage Unit > --- WEAPON (2) ------- (None) > --- INVENTORY (10) --- Medium Armor Plating Grenade Launcher Grenade Launcher Grenade Launcher Grenade Launcher Grenade Launcher Peak State ------------ > --- POWER ------------ Light Ion Engine > --- PROPULSION ------- Wheel Compact Wheel > --- UTILITY ---------- Large Storage Unit Medium Armor Plating > --- WEAPON ----------- Heavy EM Pulse Gun Heavy EM Pulse Gun > --- INVENTORY -------- Medium Laser Small Laser Light Assault Rifle Grenade Launcher Grenade Launcher Grenade Launcher Grenade Launcher Grenade Launcher Grenade Launcher Grenade Launcher [Rating: 11] Favorites ----------- Power Light Ion Engine Engine Light Ion Engine Propulsion Compact Wheel Wheel Compact Wheel Utility Large Storage Unit Storage Large Storage Unit Protection Medium Armor Plating Weapon Medium Laser Energy Gun Medium Laser Launcher Grenade Launcher Build | -11 -10 -10 ------- Run | Scr Mat Min Slots Evolved . | . . . Power . | . . . Propulsion . | . . . Utility . | . . . Weapon . | . . . Parts Attached 15 | 6 5 4 Power 1 | 1 . . Engine 1 | 1 . . Core . | . . . Reactor . | . . . Propulsion 2 | 2 . . Treads . | . . . Leg . | . . . Wheel 2 | 2 . . Hover . | . . . Flight . | . . . Utility 4 | 1 3 . Device . | . . . Storage 3 | 1 2 . Processor . | . . . Hackware . | . . . Protection 1 | . 1 . Artifact . | . . . Weapon 8 | 2 2 4 Energy Gun 6 | 2 2 2 Energy Cannon . | . . . Ballistic Gun . | . . . Ballistic Cannon . | . . . Launcher 2 | . . 2 Special Weapon . | . . . Impact Weapon . | . . . Slashing Weapon . | . . . Piercing Weapon . | . . . Special Melee Weapon . | . . . Unidentified Prototypes . | . . . Parts Lost 10 | . . 10 Power 1 | . . 1 Propulsion 2 | . . 2 Utility 1 | . . 1 Weapon 6 | . . 6 Highest Loss Streak 10 | . . 10 Average Slot Usage (%) 80 | . 87 62 Engine 12 | . 14 8 Wheel 23 | . 28 12 Storage 14 | . 14 14 Protection 3 | . 2 5 Energy Gun 22 | . 28 8 Launcher 3 | . . 12 Naked Turns . | . . . Heaviest Build 32 | 10 32 32 Greatest Support 26 | 26 26 26 Greatest Overweight (x) 7 | . 1 7 Average Overweight (x) . | . . 2 Largest Inventory Capacity 14 | 6 14 10 Average Capacity 8 | 4 8 10 Most Carried 10 | 1 10 10 Average Carried 4 | . 3 7 Final Capacity 10 | 6 10 10 Final Carried 10 | 1 10 6 Class Distribution -------------------- 100% | Mutant Dominant Class ---------------- Mutant | -10/Materials Mutant | -10/Mines Resources | -11 -10 -10 ----------- Run | Scr Mat Min Matter Collected 310 | 212 68 30 Remotely . | . . . Salvage Created 137 | . 68 69 Parts 14 | . 8 6 Haulers Intercepted 1 | . 1 . Recyclers Shooed 1 | . 1 . Parts Field Recycled . | . . . Retrieved Matter . | . . . Parts Self-Destructed . | . . . Prevented . | . . . Kills | -11 -10 -10 ------- Run | Scr Mat Min Combat Hostiles Destroyed 4 | . . 4 AOE 4 | . . 4 Classes Destroyed 7 | . 2 5 Worker 1 | . . 1 Tunneler 2 | . . 2 Hauler 1 | . 1 . Watcher 1 | . 1 . Grunt 1 | . . 1 Demolisher 1 | . . 1 Assembled 2 | . . 2 Best Kill Streak 7 | . 1 7 Combat Bots Only 4 | . . 4 Max Kills in Single Turn 2 | . 1 2 Gunslinging . | . . . Exploded 2 | . . 2 Melee . | . . . Uniques/NPCs Destroyed . | . . . Combat | -11 -10 -10 -------- Run | Scr Mat Min Damage Taken 882 | . 21 861 Core 254 | . 14 240 Absorbed by Shields . | . . . Core Remaining (%) 100 | 100 . . Volleys Fired 26 | . 5 21 Largest 2 | . 2 2 Hottest 90 | . 90 90 Shots Fired 41 | . 10 31 Gun 25 | . 10 15 Cannon . | . . . Launcher 16 | . . 16 Special . | . . . Kinetic . | . . . Thermal 10 | . 10 . Explosive 16 | . . 16 Electromagnetic 15 | . . 15 Robot Hit Streak 7 | . 3 7 Robot Miss Streak 2 | . 1 2 Penetration Max . | . . . Secondary Targets . | . . . Shots Hit Robots 27 | . 6 21 Core Hits 20 | . 3 17 Critical Hits . | . . . Critical Kills . | . . . Critical Parts Destroyed . | . . . Melee Attacks . | . . . Impact . | . . . Slashing . | . . . Piercing . | . . . Sneak Attacks . | . . . Combat Hostiles . | . . . Follow-up Attacks . | . . . Damage Inflicted 620 | . 58 562 Guns 213 | . 58 155 Cannons . | . . . Explosions 407 | . . 407 Melee . | . . . Ramming . | . . . Kinetic . | . . . Thermal 58 | . 58 . Explosive 407 | . . 407 Electromagnetic 155 | . . 155 Impact . | . . . Slashing . | . . . Piercing . | . . . Highest Corruption . | . . . Average Corruption . | . . . Corruption Purged . | . . . Overload Shots . | . . . Overflow Damage 3 | . . 3 Projectiles . | . . . Explosions 3 | . . 3 Melee . | . . . Knockbacks . | . . . Impact . | . . . Kinetic . | . . . Secondary . | . . . Self-Inflicted Damage 48 | . . 48 Shots 2 | . . 2 Rammed . | . . . Targets Rammed . | . . . Kicked . | . . . Crushed . | . . . Highest Temperature 134 | . 120 134 Average Temperature 68 | . 54 73 Received Heat Transfer 6 | . . 6 Siege Activations . | . . . Robots Corrupted . | . . . Combat Hostiles . | . . . Parts Fried . | . . . Impact Corruptions . | . . . Robots Melted . | . . . Combat Hostiles . | . . . Parts Melted . | . . . Heat Transferred 149 | . 149 . Parts Sabotaged . | . . . Parts Stolen . | . . . Parts Stripped . | . . . Power Chain Reactions . | . . . Missiles Intercepted . | . . . Alert | -11 -10 -10 ------- Run | Scr Mat Min Peak Influence 70 | . 46 70 Initial 17 | . . 17 Average 22 | . 25 26 Maximum Alert Level . | . . . Low Security (%) 100 | 100 100 100 Level 1 . | . . . Level 2 . | . . . Level 3 . | . . . Level 4 . | . . . Level 5 . | . . . High Security . | . . . Max Security . | . . . Squads Dispatched . | . . . Investigation . | . . . Extermination . | . . . Reinforcement . | . . . Assault . | . . . Garrison . | . . . Intercept . | . . . Construction Impeded . | . . . Haulers Reinforced . | . . . Stealth | -11 -10 -10 --------- Run | Scr Mat Min Distress Signals . | . . . Communications Jammed . | . . . Distress Signals . | . . . Times Spotted 14 | . 3 11 Peak Tracking Total 6 | . 2 6 Tactical Retreats 2 | . . 2 Traps | -11 -10 -10 ------- Run | Scr Mat Min Traps Triggered 1 | . 1 . Indirectly . | . . . Trap Hack Attempts . | . . . Triggered . | . . . Disarmed . | . . . Reprogrammed . | . . . Reused . | . . . Traps Extracted . | . . . Installed . | . . . Triggered . | . . . Machines | -11 -10 -10 ---------- Run | Scr Mat Min Machines Disabled . | . . . Max in Single Turn . | . . . Machines Sabotaged . | . . . Garrisons Compromised . | . . . Overloaded Fab Kills . | . . . Fab Network Shutdowns . | . . . Hacking | -11 -10 -10 --------- Run | Scr Mat Min Machines Accessed 2 | . 2 . Terminals 2 | . 2 . Fabricators . | . . . Repair Stations . | . . . Recycling Units . | . . . Scanalyzers . | . . . Garrison Access . | . . . Total Hacks 4 | . 4 . Successful 4 | . 4 . Failed . | . . . Catastrophic . | . . . Database Lockouts . | . . . Manual 3 | . 3 . Terminals 4 | . 4 . Fabricators . | . . . Repair Stations . | . . . Recycling Units . | . . . Scanalyzers . | . . . Garrison Access . | . . . Terminal Hacks 1 | . 1 . Zone Layout 1 | . 1 . Fabricator Hacks . | . . . Repair Station Hacks . | . . . Recycling Unit Hacks . | . . . Scanalyzer . | . . . Garrison Access Hacks . | . . . Unauthorized Hacks 3 | . 3 . Terminals 3 | . 3 . Track 1 | . 1 . Detonate 1 | . 1 . Operators 1 | . 1 . Fabricators . | . . . Repair Stations . | . . . Recycling Units . | . . . Scanalyzers . | . . . Garrison Access . | . . . Data Cores Recovered . | . . . Used . | . . . Hacking Detections 1 | . 1 . Full Trace Events . | . . . Feedback Events . | . . . Feedback Blocked . | . . . Robot Schematics Acquired . | . . . Robots Built . | . . . Matter . | . . . Time . | . . . Total Robot Build Rating . | . . . Part Schematics Acquired . | . . . Parts Built . | . . . Matter . | . . . Time . | . . . Total Part Build Rating . | . . . Parts Repaired . | . . . Time . | . . . Parts Recycled . | . . . Recycled Matter . | . . . Retrieved Matter . | . . . Retrieved Components . | . . . Parts Scanalyzed . | . . . Part Schematics Acquired . | . . . Parts Damaged . | . . . Bothacking | -11 -10 -10 ------------ Run | Scr Mat Min Used RIF Installer . | . . . Robots Hacked . | . . . Non-combat . | . . . Combat . | . . . Robot Hacks Applied . | . . . Relay Couplers Released . | . . . Robots Rewired . | . . . Allies Hacked . | . . . Hacks Repelled . | . . . Allies | -11 -10 -10 -------- Run | Scr Mat Min Total Allies . | . . . Largest Group . | . . . Highest-Rated Group . | . . . Highest-Rated Ally . | . . . Total Orders . | . . . Ally Attacks . | . . . Total Damage . | . . . Kills . | . . . Allies Corrupted . | . . . Allies Melted . | . . . Intel | -11 -10 -10 ------- Run | Scr Mat Min Robot Analysis Total . | . . . Derelict Logs Recovered . | . . . Drone Launches . | . . . Drone Recoveries . | . . . Exploration | -11 -10 -10 ------------- Run | Scr Mat Min Turns Passed 343 | 43 216 84 Spaces Moved 251 | 38 197 16 Core 6 | 1 . 5 Treads . | . . . Legs . | . . . Wheels 245 | 37 197 11 Hover . | . . . Flight . | . . . Fastest Speed 50 | 50 90 100 Average Speed 96 | 88 91 178 Slowest Speed 400 | 90 100 400 Overloaded Moves . | . . . Propulsion Burnouts . | . . . Robots Hopped . | . . . Cave-ins Triggered . | . . . Exploration Rate (%) 21 | 3 46 16 Regions Visited 2 Branch Regions 1 Pre-discovered Areas . | . . . Known Exits Taken . | . . . Unknown Exits Taken 2 | 1 1 . Scrap Searched . | . . . Spaces Dug . | . . . Terrain Destroyed 47 | . . 47 Melee . | . . . Projectile . | . . . AOE 47 | . . 47 Terrain Rammed . | . . . Walls Destroyed . | . . . Machines Disabled . | . . . Actions | -11 -10 -10 --------- Run | Scr Mat Min Total 309 | 44 224 41 Wait 3 | . 3 . Move 249 | 37 196 16 Hop . | . . . Pick Up 11 | 1 10 . Fast Attach 9 | 6 3 . Attach 4 | . . 4 Detach . | . . . Swap 2 | . 2 . Drop 5 | . 5 . Fire 26 | . 5 21 Melee . | . . . Ram . | . . . Kick . | . . . Crush . | . . . Escape Stasis . | . . . Rewire . | . . . Trap . | . . . Miscellaneous . | . . . Route ------- -11/Scrapyard -10/Materials -10/Mines History --------- Turn | Location | Event 4 | -11/Scrapyard | Discovered new exit (range 16) 44 | -11/Scrapyard | Entered Materials 171 | -10/Materials | Discovered new exit (range 10) 260 | -10/Materials | Entered Mines 267 | -10/Mines | Assembled infested the area 272 | -10/Mines | Assisted by a Guerilla fighting off Assembled 282 | -10/Mines | Met a Derelict bent on vengeance 302 | -10/Mines | Core integrity fell below 50% 306 | -10/Mines | Core integrity fell below 20% 321 | -10/Mines | Build established: Mutant 344 | -10/Mines | Destroyed by as-49788 with Assembled Heavy Rifle Last Messages --------------- 00315_ The unstable cave ceiling collapses. 00315_ K-01 Serf collects debris. 00316_ U-05 Engineer builds a Wall. 00317_ The unstable cave ceiling collapses. 00320_ K-01 Serf collects debris. 00321_ The unstable cave ceiling collapses. 00322_ K-01 Serf collects debris. 00326_ G-47 Trooper destroyed. 00327_ K-01 Serf collects debris. 00327_ K-01 Serf destroyed. 00328_ Acquired 30 matter. 00332_ The unstable cave ceiling collapses. 00332_ as-06514 destroyed. 00332_ Destroyed Asb. F-torch. 00332_ as-36859 destroyed. 00333_ The unstable cave ceiling collapses. 00335_ Grenade Launcher destroyed. 00336_ The unstable cave ceiling collapses. 00337_ Grenade Launcher destroyed. 00338_ The unstable cave ceiling collapses. Map ----- +----------------------------------------------------+ | ?????????????????????????????????????????????????? | | ?????????????????????????????????????????????????? | | ?????????????????????????????????????????????????? | | ?????????????????????????????????????????????????? | | ?????????????????????????????????????????????????? | | ?????????????????????????????????????????????????? | | ?????????????????????????????????????????????????? | | ?????????????????????????????????????????????????? | | ?????????????????????????????????????????????????? | | ?????????????????????????????????????????????????? | | ?????????????????????????????????????????????????? | | ?????????????????????????????????????????????????? | | ??????????????????????????????????????#??????????? | | ????????????????????###?????????????? #??????????? | | ???????????????????## #??????????### ##?????????? | | ???????????????????# ########## ##????????? | | ???????????????????# # # #????????? | | ???????????????????# # # #????????? | | ???????????????????# # ##????????? | | ???????????????????# ## #????????? | | ???????????????????# # !###???????? | | ??????????????????## = *%! ?????? | | ???????????????#### ##???????? | | ??????????????## ### a= #????????? | | ??????????????# %# #???????? | | ??????????????## @ # #????????? | | ???????????????## ## # ##????????? | | ????????????????# ## = ##?????????? | | ????????????????#### ## #?????????? | | ???????????????????### ##### ## ??? | | ?????????????????????## ????# ##?# ?? | | ?????????????????????? ???# #??? ## ######??? | | ????????????????????? ???## ##??? #??#???????? | | ????????????????????? #????###????? #??????????? | | ????????????????????? ????????????? #??????????? | | ???????????????????? #??????????????#??????????? | | ????????????????????###??????????????????????????? | | ?????????????????????????????????????????????????? | | ?????????????????????????????????????????????????? | | ?????????????????????????????????????????????????? | | ?????????????????????????????????????????????????? | | ?????????????????????????????????????????????????? | | ?????????????????????????????????????????????????? | | ?????????????????????????????????????????????????? | | ?????????????????????????????????????????????????? | | ?????????????????????????????????????????????????? | | ?????????????????????????????????????????????????? | | ?????????????????????????????????????????????????? | | | | | +----------------------------------------------------+ Best States ------------- Heat Dissipation 25 Energy Generation 10 Energy Capacity 125 Matter Stores 300 Matter Capacity 300 Sight Range 16 Terrain Scan Density 10 Armor Coverage 225 Evasion (%) 42 Item Schematics ----------------- None Robot Schematics ------------------ None Fabricated ------------ Nothing Alien Tech Used ----------------- None Achievements -------------- None Challenges ------------ None Game ------ Seed FluxUltimateCharger Manual? 0 Play Time 00:05:08 Cumulative 84.2 hours Start 2021.03.23 @ 15:26:53 End 2021.03.23 @ 15:34:26 Sessions 1 Manual Loads 0 Difficulty Rogue Special Mode None Game No. 224 Rogue 71 Adventurer 148 Explorer 5 Win Type - Total 1 Types 1/0/0/0/0/0/0/0/0 Lore% 55 Gallery% 64 Achievement% 51 Wizard Run 0 Options --------- ASCII 0 Keyboard 0 Movement Numpad Keybinds 0 Fullscreen 1 Font 14/X11 Map View 84x54 Tactical HUD 1 Map Filters NONE Filters NONE Steam 1 RUN: 8ef7870c-a662-44a7-92f5-23a1c077cb80